[Event "Titled Tuesday Blitz May 10 Late 2022"]
[White "Barria Zuniga, Daniel"]
[Black "Matinian, Nikita"]
[WhiteFideId "3400816"]
[BlackFideId "24129100"]
[WhiteElo "2414"]
[BlackElo "2422"]
[Result "1-0"]
[Round "09"]
[TimeControl "180+1"]
[Date "2022.05.10"]
[WhiteClock "0:01:17"]
[BlackClock "0:00:34"]

1. c4 {[%clk 0:02:18]}  e5 {[%clk 0:02:54]} 2. g3 {[%clk 0:02:18]}  Nc6 {[%clk 0:02:54]} 3. Bg2 {[%clk 0:02:18]}  g6 {[%clk 0:02:55]} 4. Nc3 {[%clk 0:02:19]}  Bg7 {[%clk 0:02:56]} 5. Rb1 {[%clk 0:02:19]}  a5 {[%clk 0:02:56]} 6. a3 {[%clk 0:02:19]}  d6 {[%clk 0:02:54]} 7. b4 {[%clk 0:02:18]}  axb4 {[%clk 0:02:54]} 8. axb4 {[%clk 0:02:18]}  Nf6 {[%clk 0:02:53]} 9. b5 {[%clk 0:02:18]}  Ne7 {[%clk 0:02:51]} 10. d3 {[%clk 0:02:17]}  O-O {[%clk 0:02:51]} 11. Nh3 {[%clk 0:02:12]}  c6 {[%clk 0:02:51]} 12. bxc6 {[%clk 0:02:11]}  bxc6 {[%clk 0:02:52]} 13. O-O {[%clk 0:02:11]}  d5 {[%clk 0:02:52]} 14. cxd5 {[%clk 0:02:11]}  cxd5 {[%clk 0:02:53]} 15. d4 {[%clk 0:02:11]}  exd4 {[%clk 0:02:52]} 16. Nb5 {[%clk 0:02:10]}  Nf5 {[%clk 0:02:26]} 17. Bb2 {[%clk 0:02:03]}  d3 {[%clk 0:01:23]} 18. exd3 {[%clk 0:01:39]}  Ba6 {[%clk 0:01:06]} 19. Nd4 {[%clk 0:01:36]}  Qd7 {[%clk 0:01:01]} 20. Nf4 {[%clk 0:01:33]}  Rab8 {[%clk 0:00:58]} 21. Nxf5 {[%clk 0:01:25]}  Qxf5 {[%clk 0:00:59]} 22. h4 {[%clk 0:01:23]}  Rfd8 {[%clk 0:00:52]} 23. Bh3 {[%clk 0:01:22]}  Rxb2 {[%clk 0:00:38]} 24. Bxf5 {[%clk 0:01:19]}  Rxb1 {[%clk 0:00:37]} 25. Qxb1 {[%clk 0:01:18]}  gxf5 {[%clk 0:00:38]} 26. Qb6 {[%clk 0:01:19]}  Ra8 {[%clk 0:00:34]} 27. Ra1 {[%clk 0:01:17]}  Nd7 {[%clk 0:00:34]} 28. Qc6 {[%clk 0:01:17]} 1-0


[Site "https://www.chess.com"]

[Event "Titled Tuesday Blitz May 10 Late 2022"]
[White "Bifulco, Michel"]
[Black "Sanchez Alvares, Kelvin Antonio"]
[WhiteFideId "828580"]
[BlackFideId "3906680"]
[WhiteElo "2165"]
[BlackElo "2193"]
[Result "1-0"]
[Round "09"]
[TimeControl "180+1"]
[Date "2022.05.11"]
[WhiteClock "0:00:49"]
[BlackClock "0:00:14"]

1. d4 {[%clk 0:03:00]}  Nf6 {[%clk 0:02:59]} 2. Nc3 {[%clk 0:03:01]}  c5 {[%clk 0:02:57]} 3. d5 {[%clk 0:03:00]}  g6 {[%clk 0:02:56]} 4. g3 {[%clk 0:03:01]}  Bg7 {[%clk 0:02:56]} 5. Bg2 {[%clk 0:03:01]}  d6 {[%clk 0:02:57]} 6. e4 {[%clk 0:03:01]}  O-O {[%clk 0:02:57]} 7. Nge2 {[%clk 0:03:01]}  e6 {[%clk 0:02:57]} 8. dxe6 {[%clk 0:03:00]}  Bxe6 {[%clk 0:02:57]} 9. Bf4 {[%clk 0:03:01]}  Ne8 {[%clk 0:02:48]} 10. O-O {[%clk 0:02:59]}  Nc6 {[%clk 0:02:47]} 11. Qd2 {[%clk 0:02:57]}  Ne5 {[%clk 0:02:41]} 12. b3 {[%clk 0:02:50]}  Rc8 {[%clk 0:02:38]} 13. Rad1 {[%clk 0:02:50]}  Qe7 {[%clk 0:02:18]} 14. Nb5 {[%clk 0:02:48]}  a6 {[%clk 0:02:08]} 15. Nxd6 {[%clk 0:02:35]}  Rd8 {[%clk 0:02:00]} 16. Nf5 {[%clk 0:02:34]}  gxf5 {[%clk 0:01:54]} 17. Qxd8 {[%clk 0:02:33]}  Qxd8 {[%clk 0:01:52]} 18. Rxd8 {[%clk 0:02:33]}  fxe4 {[%clk 0:01:51]} 19. Bxe4 {[%clk 0:02:33]}  b6 {[%clk 0:01:49]} 20. Re1 {[%clk 0:02:19]}  Ng6 {[%clk 0:01:34]} 21. Bd2 {[%clk 0:02:02]}  Nf6 {[%clk 0:01:30]} 22. Rxf8+ {[%clk 0:02:01]}  Kxf8 {[%clk 0:01:22]} 23. Bg2 {[%clk 0:01:54]}  Nd5 {[%clk 0:01:12]} 24. c4 {[%clk 0:01:49]}  Nb4 {[%clk 0:01:04]} 25. Nf4 {[%clk 0:01:44]}  Nxf4 {[%clk 0:00:55]} 26. Bxf4 {[%clk 0:01:44]}  Nxa2 {[%clk 0:00:43]} 27. Bc7 {[%clk 0:01:44]}  b5 {[%clk 0:00:39]} 28. Bd5 {[%clk 0:01:30]}  Ke7 {[%clk 0:00:33]} 29. Be5 {[%clk 0:01:15]}  Bxe5 {[%clk 0:00:28]} 30. Rxe5 {[%clk 0:01:15]}  Kd6 {[%clk 0:00:28]} 31. Re1 {[%clk 0:01:06]}  Bxd5 {[%clk 0:00:24]} 32. cxd5 {[%clk 0:01:06]}  Kxd5 {[%clk 0:00:22]} 33. Re7 {[%clk 0:01:06]}  c4 {[%clk 0:00:23]} 34. bxc4+ {[%clk 0:01:06]}  bxc4 {[%clk 0:00:22]} 35. Rxf7 {[%clk 0:01:07]}  Nb4 {[%clk 0:00:19]} 36. Kf1 {[%clk 0:01:04]}  c3 {[%clk 0:00:20]} 37. Ke2 {[%clk 0:01:03]}  Kd4 {[%clk 0:00:20]} 38. Rf4+ {[%clk 0:00:59]}  Kc5 {[%clk 0:00:19]} 39. Rh4 {[%clk 0:00:57]}  a5 {[%clk 0:00:18]} 40. Rh5+ {[%clk 0:00:56]}  Kc4 {[%clk 0:00:18]} 41. Rxa5 {[%clk 0:00:55]}  Nd3 {[%clk 0:00:17]} 42. Ra8 {[%clk 0:00:52]}  Nc5 {[%clk 0:00:17]} 43. Rc8 {[%clk 0:00:50]}  Kd4 {[%clk 0:00:16]} 44. Rxc5 {[%clk 0:00:49]}  Kxc5 {[%clk 0:00:16]} 45. Kd3 {[%clk 0:00:49]}  Kd5 {[%clk 0:00:17]} 46. f3 {[%clk 0:00:48]}  c2 {[%clk 0:00:13]} 47. Kxc2 {[%clk 0:00:48]}  Kd4 {[%clk 0:00:14]} 48. Kd2 {[%clk 0:00:49]} 1-0


[Site "https://www.chess.com"]

[Event "Titled Tuesday Blitz May 10 Late 2022"]
[White "Bongo Akanga Ndjila, Barthelemy"]
[Black "Melikhov, Evgeny V."]
[WhiteFideId "10609431"]
[BlackFideId "4122046"]
[WhiteElo "1768"]
[BlackElo "1931"]
[Result "1/2-1/2"]
[Round "09"]
[TimeControl "180+1"]
[Date "2022.05.11"]
[WhiteClock "0:01:09"]
[BlackClock "0:01:32"]

1. d4 {[%clk 0:01:54]}  Nf6 {[%clk 0:02:58]} 2. c4 {[%clk 0:01:53]}  e6 {[%clk 0:02:58]} 3. Nc3 {[%clk 0:01:53]}  Bb4 {[%clk 0:02:58]} 4. f3 {[%clk 0:01:51]}  d5 {[%clk 0:02:52]} 5. a3 {[%clk 0:01:51]}  Bxc3+ {[%clk 0:02:52]} 6. bxc3 {[%clk 0:01:51]}  c6 {[%clk 0:02:52]} 7. cxd5 {[%clk 0:01:50]}  cxd5 {[%clk 0:02:53]} 8. e3 {[%clk 0:01:50]}  O-O {[%clk 0:02:52]} 9. Bd3 {[%clk 0:01:50]}  b6 {[%clk 0:02:52]} 10. Ne2 {[%clk 0:01:50]}  Ba6 {[%clk 0:02:52]} 11. O-O {[%clk 0:01:50]}  Qc8 {[%clk 0:02:47]} 12. e4 {[%clk 0:01:47]}  Bxd3 {[%clk 0:02:43]} 13. Qxd3 {[%clk 0:01:46]}  Qa6 {[%clk 0:02:42]} 14. Qe3 {[%clk 0:01:43]}  Nc6 {[%clk 0:02:31]} 15. e5 {[%clk 0:01:42]}  Nd7 {[%clk 0:02:30]} 16. f4 {[%clk 0:01:41]}  g6 {[%clk 0:02:26]} 17. g4 {[%clk 0:01:40]}  Na5 {[%clk 0:02:16]} 18. f5 {[%clk 0:01:38]}  Nc4 {[%clk 0:01:43]} 19. Qh6 {[%clk 0:01:36]}  Ncxe5 {[%clk 0:01:37]} 20. dxe5 {[%clk 0:01:27]}  Qxe2 {[%clk 0:01:35]} 21. f6 {[%clk 0:01:27]}  Qxg4+ {[%clk 0:01:34]} 22. Kh1 {[%clk 0:01:25]}  Qe4+ {[%clk 0:01:34]} 23. Kg1 {[%clk 0:01:25]}  Qg4+ {[%clk 0:01:34]} 24. Kh1 {[%clk 0:01:23]}  Qe4+ {[%clk 0:01:32]} 25. Kg1 {[%clk 0:01:09]}  Qg4+ {[%clk 0:01:32]} 1/2-1/2


[Site "https://www.chess.com"]

[Event "Titled Tuesday Blitz May 10 Late 2022"]
[White "Bortnyk, Olexandr"]
[Black "Pap, Gyula"]
[WhiteFideId "14120828"]
[BlackFideId "725323"]
[WhiteElo "2723"]
[BlackElo "2553"]
[Result "1-0"]
[Round "09"]
[TimeControl "180+1"]
[Date "2022.05.10"]
[WhiteClock "0:02:10"]
[BlackClock "0:02:03"]

1. d4 {[%clk 0:03:00]}  Nf6 {[%clk 0:02:51]} 2. Nc3 {[%clk 0:03:01]}  d5 {[%clk 0:02:50]} 3. Bf4 {[%clk 0:03:02]}  c5 {[%clk 0:02:49]} 4. e4 {[%clk 0:03:02]}  dxe4 {[%clk 0:02:42]} 5. d5 {[%clk 0:03:02]}  a6 {[%clk 0:02:41]} 6. Qe2 {[%clk 0:02:59]}  Bf5 {[%clk 0:02:31]} 7. f3 {[%clk 0:02:56]}  Qa5 {[%clk 0:02:29]} 8. O-O-O {[%clk 0:02:53]}  Nbd7 {[%clk 0:02:16]} 9. fxe4 {[%clk 0:02:51]}  Bg4 {[%clk 0:02:16]} 10. Nf3 {[%clk 0:02:51]}  e5 {[%clk 0:02:17]} 11. dxe6 {[%clk 0:02:43]}  Bxe6 {[%clk 0:02:11]} 12. Nd5 {[%clk 0:02:43]}  Rc8 {[%clk 0:02:06]} 13. Kb1 {[%clk 0:02:34]}  Nb6 {[%clk 0:02:03]} 14. Bd2 {[%clk 0:02:10]} 1-0


[Site "https://www.chess.com"]

[Event "Titled Tuesday Blitz May 10 Late 2022"]
[White "Butti, Enrique"]
[Black "Kujawski, Adam"]
[WhiteFideId "3700470"]
[BlackFideId "1100920"]
[WhiteElo "2080"]
[BlackElo "1982"]
[Result "0-1"]
[Round "09"]
[TimeControl "180+1"]
[Date "2022.05.11"]
[WhiteClock "0:00:03"]
[BlackClock "0:00:05"]

1. d4 {[%clk 0:02:24]}  Nf6 {[%clk 0:02:47]} 2. Nf3 {[%clk 0:02:23]}  c5 {[%clk 0:02:47]} 3. e3 {[%clk 0:02:20]}  b6 {[%clk 0:02:46]} 4. Bd3 {[%clk 0:02:18]}  Bb7 {[%clk 0:02:46]} 5. O-O {[%clk 0:02:18]}  g6 {[%clk 0:02:43]} 6. c3 {[%clk 0:02:17]}  Bg7 {[%clk 0:02:42]} 7. Nbd2 {[%clk 0:02:16]}  d5 {[%clk 0:02:42]} 8. Ne5 {[%clk 0:02:15]}  O-O {[%clk 0:02:42]} 9. f4 {[%clk 0:02:15]}  Ne4 {[%clk 0:02:38]} 10. Nxe4 {[%clk 0:02:08]}  dxe4 {[%clk 0:02:38]} 11. Bc4 {[%clk 0:02:08]}  Ba6 {[%clk 0:02:12]} 12. Qb3 {[%clk 0:01:58]}  Bxc4 {[%clk 0:02:11]} 13. Qxc4 {[%clk 0:01:57]}  cxd4 {[%clk 0:02:05]} 14. exd4 {[%clk 0:01:55]}  e6 {[%clk 0:01:51]} 15. a4 {[%clk 0:01:50]}  Qd5 {[%clk 0:01:49]} 16. Qxd5 {[%clk 0:01:48]}  exd5 {[%clk 0:01:49]} 17. a5 {[%clk 0:01:37]}  Bxe5 {[%clk 0:01:48]} 18. fxe5 {[%clk 0:01:35]}  Nc6 {[%clk 0:01:48]} 19. a6 {[%clk 0:01:31]}  Na5 {[%clk 0:01:41]} 20. Bh6 {[%clk 0:01:28]}  Rfe8 {[%clk 0:01:37]} 21. Rf2 {[%clk 0:01:19]}  Rac8 {[%clk 0:01:34]} 22. Raf1 {[%clk 0:01:16]}  Rc7 {[%clk 0:01:33]} 23. Rf6 {[%clk 0:01:10]}  Nc4 {[%clk 0:01:30]} 24. e6 {[%clk 0:01:08]}  Nd6 {[%clk 0:01:23]} 25. Bf4 {[%clk 0:01:01]}  Rxe6 {[%clk 0:00:42]} 26. Rxe6 {[%clk 0:00:53]}  fxe6 {[%clk 0:00:42]} 27. Bxd6 {[%clk 0:00:52]}  Rd7 {[%clk 0:00:43]} 28. Be5 {[%clk 0:00:45]}  h6 {[%clk 0:00:44]} 29. Rf6 {[%clk 0:00:44]}  Kh7 {[%clk 0:00:42]} 30. Rxe6 {[%clk 0:00:43]}  Rf7 {[%clk 0:00:40]} 31. Bg3 {[%clk 0:00:36]}  g5 {[%clk 0:00:39]} 32. Rc6 {[%clk 0:00:32]}  Rf5 {[%clk 0:00:25]} 33. Rc7+ {[%clk 0:00:29]}  Kg6 {[%clk 0:00:25]} 34. Rxa7 {[%clk 0:00:27]}  e3 {[%clk 0:00:25]} 35. Re7 {[%clk 0:00:25]}  Rf8 {[%clk 0:00:21]} 36. a7 {[%clk 0:00:24]}  Kf6 {[%clk 0:00:16]} 37. Bb8 {[%clk 0:00:20]}  Kxe7 {[%clk 0:00:13]} 38. a8=Q {[%clk 0:00:18]}  e2 {[%clk 0:00:13]} 39. Qb7+ {[%clk 0:00:15]}  Kf6 {[%clk 0:00:04]} 40. Bg3 {[%clk 0:00:09]}  Kg6 {[%clk 0:00:04]} 41. Qc6+ {[%clk 0:00:06]}  Kh5 {[%clk 0:00:03]} 42. h3 {[%clk 0:00:04]}  Rf1+ {[%clk 0:00:03]} 43. Kh2 {[%clk 0:00:03]}  e1=Q {[%clk 0:00:03]} 44. Bxe1 {[%clk 0:00:04]}  Rxe1 {[%clk 0:00:03]} 45. Qxd5 {[%clk 0:00:03]}  Rb1 {[%clk 0:00:04]} 46. Qb3 {[%clk 0:00:02]}  Rxb2 {[%clk 0:00:05]} 47. d5 {[%clk 0:00:03]}  Rxb3 {[%clk 0:00:04]} 48. d6 {[%clk 0:00:03]}  Rxc3 {[%clk 0:00:05]} 0-1


[Site "https://www.chess.com"]

[Event "Titled Tuesday Blitz May 10 Late 2022"]
[White "Djokic, Mihailo"]
[Black "Bjelobrk, Igor"]
[WhiteFideId "976440"]
[BlackFideId "4300726"]
[WhiteElo "2202"]
[BlackElo "2335"]
[Result "1-0"]
[Round "09"]
[TimeControl "180+1"]
[Date "2022.05.10"]
[WhiteClock "0:00:28"]
[BlackClock "0:00:05"]

1. e4 {[%clk 0:03:00]}  e5 {[%clk 0:02:51]} 2. Nf3 {[%clk 0:03:00]}  Nc6 {[%clk 0:02:50]} 3. Nc3 {[%clk 0:03:01]}  Nf6 {[%clk 0:02:49]} 4. Bb5 {[%clk 0:03:01]}  Bc5 {[%clk 0:02:32]} 5. Nxe5 {[%clk 0:03:01]}  Nxe5 {[%clk 0:02:28]} 6. d4 {[%clk 0:03:01]}  Bd6 {[%clk 0:02:27]} 7. f4 {[%clk 0:03:00]}  Neg4 {[%clk 0:02:24]} 8. e5 {[%clk 0:02:59]}  Bb4 {[%clk 0:02:20]} 9. exf6 {[%clk 0:02:57]}  Nxf6 {[%clk 0:02:15]} 10. O-O {[%clk 0:02:57]}  O-O {[%clk 0:02:14]} 11. f5 {[%clk 0:02:53]}  c6 {[%clk 0:02:05]} 12. Bd3 {[%clk 0:02:46]}  d5 {[%clk 0:02:04]} 13. Bg5 {[%clk 0:02:35]}  Re8 {[%clk 0:01:58]} 14. Qf3 {[%clk 0:02:26]}  Qd6 {[%clk 0:01:30]} 15. Ne2 {[%clk 0:02:16]}  Bd7 {[%clk 0:01:26]} 16. c3 {[%clk 0:02:12]}  Ba5 {[%clk 0:01:25]} 17. b4 {[%clk 0:02:12]}  Bd8 {[%clk 0:01:24]} 18. Bf4 {[%clk 0:02:10]}  Qf8 {[%clk 0:01:23]} 19. g4 {[%clk 0:02:08]}  Ne4 {[%clk 0:01:22]} 20. Bxe4 {[%clk 0:01:59]}  dxe4 {[%clk 0:01:10]} 21. Qe3 {[%clk 0:01:53]}  a5 {[%clk 0:01:08]} 22. a3 {[%clk 0:01:49]}  h6 {[%clk 0:00:50]} 23. Ng3 {[%clk 0:01:45]}  Qe7 {[%clk 0:00:27]} 24. Rfe1 {[%clk 0:01:36]}  Qh4 {[%clk 0:00:27]} 25. Qe2 {[%clk 0:01:22]}  h5 {[%clk 0:00:24]} 26. Nxh5 {[%clk 0:01:17]}  axb4 {[%clk 0:00:21]} 27. Bg3 {[%clk 0:01:11]}  Qg5 {[%clk 0:00:18]} 28. axb4 {[%clk 0:01:08]}  Rxa1 {[%clk 0:00:17]} 29. Rxa1 {[%clk 0:01:09]}  e3 {[%clk 0:00:17]} 30. Re1 {[%clk 0:01:04]}  g6 {[%clk 0:00:15]} 31. h4 {[%clk 0:00:56]}  Qh6 {[%clk 0:00:15]} 32. Bf4 {[%clk 0:00:54]}  Qh7 {[%clk 0:00:15]} 33. Ng3 {[%clk 0:00:44]}  Qxh4 {[%clk 0:00:15]} 34. Kg2 {[%clk 0:00:41]}  Qf6 {[%clk 0:00:12]} 35. g5 {[%clk 0:00:36]}  Qe7 {[%clk 0:00:12]} 36. f6 {[%clk 0:00:32]}  Qe6 {[%clk 0:00:12]} 37. Rh1 {[%clk 0:00:32]}  Qd5+ {[%clk 0:00:11]} 38. Kg1 {[%clk 0:00:30]}  Bb6 {[%clk 0:00:08]} 39. Qh2 {[%clk 0:00:29]}  Bh3 {[%clk 0:00:05]} 40. Qxh3 {[%clk 0:00:28]}  e2 {[%clk 0:00:05]} 41. Qh8# {[%clk 0:00:28]} 1-0


[Site "https://www.chess.com"]

[Event "Titled Tuesday Blitz May 10 Late 2022"]
[White "Dubov, Daniil"]
[Black "Holt, Conrad"]
[WhiteFideId "24126055"]
[BlackFideId "2034387"]
[WhiteElo "2791"]
[BlackElo "2586"]
[Result "1-0"]
[Round "09"]
[TimeControl "180+1"]
[Date "2022.05.10"]
[WhiteClock "0:00:02"]
[BlackClock "0:00:02"]

1. d4 {[%clk 0:03:00]}  d5 {[%clk 0:03:00]} 2. Nf3 {[%clk 0:02:56]}  Nf6 {[%clk 0:02:59]} 3. c4 {[%clk 0:02:57]}  c6 {[%clk 0:03:00]} 4. Nc3 {[%clk 0:02:55]}  dxc4 {[%clk 0:03:00]} 5. e4 {[%clk 0:02:55]}  b5 {[%clk 0:02:59]} 6. Be2 {[%clk 0:02:55]}  e6 {[%clk 0:02:59]} 7. O-O {[%clk 0:02:55]}  Nbd7 {[%clk 0:02:57]} 8. d5 {[%clk 0:02:50]}  Bb7 {[%clk 0:02:44]} 9. dxe6 {[%clk 0:02:30]}  fxe6 {[%clk 0:02:45]} 10. e5 {[%clk 0:02:30]}  Nd5 {[%clk 0:02:42]} 11. Nd4 {[%clk 0:02:20]}  Nc5 {[%clk 0:02:42]} 12. Bg4 {[%clk 0:02:02]}  Qd7 {[%clk 0:02:38]} 13. Nxd5 {[%clk 0:01:16]}  Qxd5 {[%clk 0:02:33]} 14. Be3 {[%clk 0:00:55]}  Rd8 {[%clk 0:02:06]} 15. b4 {[%clk 0:00:48]}  cxb3 {[%clk 0:01:32]} 16. axb3 {[%clk 0:00:47]}  Qxe5 {[%clk 0:01:25]} 17. b4 {[%clk 0:00:35]}  Na4 {[%clk 0:01:22]} 18. Re1 {[%clk 0:00:23]}  Bxb4 {[%clk 0:00:32]} 19. Bd2 {[%clk 0:00:10]}  Qxd4 {[%clk 0:00:31]} 20. Rxe6+ {[%clk 0:00:10]}  Be7 {[%clk 0:00:30]} 21. Qe1 {[%clk 0:00:04]}  O-O {[%clk 0:00:28]} 22. Rxe7 {[%clk 0:00:04]}  Qxg4 {[%clk 0:00:17]} 23. Rxb7 {[%clk 0:00:03]}  Rd7 {[%clk 0:00:10]} 24. Rxd7 {[%clk 0:00:03]}  Qxd7 {[%clk 0:00:11]} 25. Be3 {[%clk 0:00:03]}  c5 {[%clk 0:00:11]} 26. h3 {[%clk 0:00:04]}  Rd8 {[%clk 0:00:10]} 27. Rc1 {[%clk 0:00:03]}  c4 {[%clk 0:00:09]} 28. Qb4 {[%clk 0:00:03]}  a6 {[%clk 0:00:09]} 29. Qa5 {[%clk 0:00:03]}  Qd6 {[%clk 0:00:09]} 30. Bf4 {[%clk 0:00:03]}  Qf6 {[%clk 0:00:05]} 31. Be5 {[%clk 0:00:02]}  Qg5 {[%clk 0:00:04]} 32. Bf4 {[%clk 0:00:02]}  Qf6 {[%clk 0:00:04]} 33. Be5 {[%clk 0:00:02]}  Qe7 {[%clk 0:00:02]} 34. f4 {[%clk 0:00:02]}  Nc5 {[%clk 0:00:02]} 35. Rf1 {[%clk 0:00:02]}  Nd3 {[%clk 0:00:02]} 36. Bc3 {[%clk 0:00:02]} 1-0


[Site "https://www.chess.com"]

[Event "Titled Tuesday Blitz May 10 Late 2022"]
[White "Fishbein, Alexander"]
[Black "Hess, Robert"]
[WhiteFideId "2000377"]
[BlackFideId "2022036"]
[WhiteElo "2442"]
[BlackElo "2557"]
[Result "1-0"]
[Round "09"]
[TimeControl "180+1"]
[Date "2022.05.10"]
[WhiteClock "0:00:03"]
[BlackClock "0:00:07"]

1. Nf3 {[%clk 0:03:00]}  g6 {[%clk 0:03:00]} 2. e4 {[%clk 0:03:00]}  Bg7 {[%clk 0:03:00]} 3. d4 {[%clk 0:03:00]}  d6 {[%clk 0:03:00]} 4. c3 {[%clk 0:02:59]}  Nd7 {[%clk 0:02:57]} 5. Bd3 {[%clk 0:02:58]}  e5 {[%clk 0:02:55]} 6. O-O {[%clk 0:02:58]}  Ne7 {[%clk 0:02:54]} 7. Nbd2 {[%clk 0:02:49]}  Nc6 {[%clk 0:02:52]} 8. Nb3 {[%clk 0:02:43]}  O-O {[%clk 0:02:48]} 9. Bg5 {[%clk 0:02:37]}  f6 {[%clk 0:02:46]} 10. Be3 {[%clk 0:02:37]}  g5 {[%clk 0:02:40]} 11. Bc4+ {[%clk 0:02:32]}  Kh8 {[%clk 0:02:39]} 12. Be6 {[%clk 0:02:31]}  Qe8 {[%clk 0:02:31]} 13. Bf5 {[%clk 0:02:29]}  Ne7 {[%clk 0:02:28]} 14. Be6 {[%clk 0:02:25]}  Ng6 {[%clk 0:02:25]} 15. Bf5 {[%clk 0:02:25]}  Nb6 {[%clk 0:02:23]} 16. Bxc8 {[%clk 0:02:22]}  Rxc8 {[%clk 0:02:20]} 17. dxe5 {[%clk 0:02:22]}  dxe5 {[%clk 0:02:09]} 18. Nfd2 {[%clk 0:02:14]}  Rf7 {[%clk 0:02:06]} 19. Qg4 {[%clk 0:02:00]}  Qd7 {[%clk 0:02:03]} 20. Qxd7 {[%clk 0:01:59]}  Rxd7 {[%clk 0:02:04]} 21. g3 {[%clk 0:01:56]}  Na4 {[%clk 0:02:03]} 22. Rab1 {[%clk 0:01:51]}  c5 {[%clk 0:01:55]} 23. Na5 {[%clk 0:01:37]}  b6 {[%clk 0:01:13]} 24. Nac4 {[%clk 0:01:37]}  Rcd8 {[%clk 0:01:14]} 25. Nf3 {[%clk 0:01:01]}  g4 {[%clk 0:01:14]} 26. Ne1 {[%clk 0:00:57]}  h5 {[%clk 0:01:05]} 27. Rc1 {[%clk 0:00:41]}  Rd1 {[%clk 0:00:50]} 28. Rxd1 {[%clk 0:00:37]}  Rxd1 {[%clk 0:00:51]} 29. Nc2 {[%clk 0:00:37]}  Rd7 {[%clk 0:00:40]} 30. N2a3 {[%clk 0:00:32]}  a6 {[%clk 0:00:14]} 31. b3 {[%clk 0:00:31]}  Nxc3 {[%clk 0:00:13]} 32. Nxb6 {[%clk 0:00:31]}  Rc7 {[%clk 0:00:12]} 33. Nac4 {[%clk 0:00:25]}  Nxa2 {[%clk 0:00:11]} 34. Rd1 {[%clk 0:00:24]}  Nc3 {[%clk 0:00:10]} 35. Rd8+ {[%clk 0:00:23]}  Kh7 {[%clk 0:00:11]} 36. Nd6 {[%clk 0:00:22]}  Rc6 {[%clk 0:00:09]} 37. Nbc4 {[%clk 0:00:22]}  Nb5 {[%clk 0:00:08]} 38. Nf5 {[%clk 0:00:21]}  Rc7 {[%clk 0:00:06]} 39. Rd5 {[%clk 0:00:21]}  Nd4 {[%clk 0:00:06]} 40. Bxd4 {[%clk 0:00:17]}  cxd4 {[%clk 0:00:06]} 41. Kf1 {[%clk 0:00:15]}  Bf8 {[%clk 0:00:06]} 42. Ke2 {[%clk 0:00:13]}  Rb7 {[%clk 0:00:06]} 43. Na5 {[%clk 0:00:12]}  Rc7 {[%clk 0:00:07]} 44. Nc4 {[%clk 0:00:10]}  Ne7 {[%clk 0:00:07]} 45. Nxe7 {[%clk 0:00:08]}  Bxe7 {[%clk 0:00:08]} 46. Kd3 {[%clk 0:00:08]}  Bb4 {[%clk 0:00:07]} 47. Rd8 {[%clk 0:00:03]}  Kg6 {[%clk 0:00:08]} 48. Rg8+ {[%clk 0:00:03]}  Kf7 {[%clk 0:00:08]} 49. Ra8 {[%clk 0:00:03]}  Rc6 {[%clk 0:00:07]} 50. Ra7+ {[%clk 0:00:03]}  Kg6 {[%clk 0:00:08]} 51. Rd7 {[%clk 0:00:03]}  Bf8 {[%clk 0:00:07]} 52. Rd5 {[%clk 0:00:03]}  Bh6 {[%clk 0:00:06]} 53. Rd7 {[%clk 0:00:03]}  h4 {[%clk 0:00:06]} 54. Rd6 {[%clk 0:00:03]}  h3 {[%clk 0:00:07]} 55. Rxc6 {[%clk 0:00:03]} 1-0


[Site "https://www.chess.com"]

[Event "Titled Tuesday Blitz May 10 Late 2022"]
[White "Hansen, Eric"]
[Black "Martinez Alcantara, Jose Eduardo"]
[WhiteFideId "2606771"]
[BlackFideId "3805662"]
[WhiteElo "2568"]
[BlackElo "2690"]
[Result "1/2-1/2"]
[Round "09"]
[TimeControl "180+1"]
[Date "2022.05.10"]
[WhiteClock "0:00:04"]
[BlackClock "0:00:06"]

1. e4 {[%clk 0:02:54]}  c5 {[%clk 0:02:59]} 2. Nf3 {[%clk 0:02:54]}  d6 {[%clk 0:03:00]} 3. Bb5+ {[%clk 0:02:54]}  Nd7 {[%clk 0:03:00]} 4. c3 {[%clk 0:02:52]}  Nf6 {[%clk 0:03:00]} 5. Qe2 {[%clk 0:02:52]}  a6 {[%clk 0:03:00]} 6. Ba4 {[%clk 0:02:53]}  b5 {[%clk 0:03:00]} 7. Bc2 {[%clk 0:02:53]}  Bb7 {[%clk 0:03:01]} 8. O-O {[%clk 0:02:54]}  e5 {[%clk 0:03:01]} 9. d4 {[%clk 0:02:54]}  Be7 {[%clk 0:03:02]} 10. d5 {[%clk 0:02:54]}  c4 {[%clk 0:02:48]} 11. b3 {[%clk 0:02:52]}  cxb3 {[%clk 0:02:42]} 12. axb3 {[%clk 0:02:52]}  O-O {[%clk 0:02:43]} 13. b4 {[%clk 0:02:41]}  Rc8 {[%clk 0:02:33]} 14. Bb2 {[%clk 0:02:38]}  g6 {[%clk 0:02:29]} 15. Nbd2 {[%clk 0:02:38]}  Nb6 {[%clk 0:02:26]} 16. Rac1 {[%clk 0:02:32]}  Nh5 {[%clk 0:02:15]} 17. g3 {[%clk 0:02:32]}  Ng7 {[%clk 0:02:06]} 18. Bb3 {[%clk 0:01:58]}  Kh8 {[%clk 0:01:47]} 19. c4 {[%clk 0:01:55]}  bxc4 {[%clk 0:01:48]} 20. Nxc4 {[%clk 0:01:55]}  Nxc4 {[%clk 0:01:49]} 21. Bxc4 {[%clk 0:01:45]}  Qb6 {[%clk 0:01:49]} 22. Bc3 {[%clk 0:01:45]}  f5 {[%clk 0:01:48]} 23. Bd3 {[%clk 0:01:34]}  fxe4 {[%clk 0:01:23]} 24. Bxe4 {[%clk 0:01:05]}  Nh5 {[%clk 0:01:16]} 25. Bd2 {[%clk 0:01:01]}  Nf6 {[%clk 0:01:12]} 26. Bg5 {[%clk 0:00:39]}  Nxe4 {[%clk 0:00:52]} 27. Qxe4 {[%clk 0:00:30]}  Rxc1 {[%clk 0:00:39]} 28. Bxc1 {[%clk 0:00:28]}  Bf6 {[%clk 0:00:28]} 29. Bh6 {[%clk 0:00:25]}  Re8 {[%clk 0:00:25]} 30. Rc1 {[%clk 0:00:21]}  Qb5 {[%clk 0:00:22]} 31. Rd1 {[%clk 0:00:15]}  Kg8 {[%clk 0:00:22]} 32. h4 {[%clk 0:00:15]}  Qd7 {[%clk 0:00:22]} 33. Bg5 {[%clk 0:00:13]}  Bg7 {[%clk 0:00:22]} 34. h5 {[%clk 0:00:13]}  Qf5 {[%clk 0:00:23]} 35. Qxf5 {[%clk 0:00:10]}  gxf5 {[%clk 0:00:23]} 36. h6 {[%clk 0:00:08]}  Bf8 {[%clk 0:00:16]} 37. Nh4 {[%clk 0:00:07]}  e4 {[%clk 0:00:09]} 38. Bf4 {[%clk 0:00:07]}  Bc8 {[%clk 0:00:03]} 39. Rc1 {[%clk 0:00:07]}  Be7 {[%clk 0:00:02]} 40. Ng2 {[%clk 0:00:06]}  Kf7 {[%clk 0:00:02]} 41. Rc7 {[%clk 0:00:05]}  Kg6 {[%clk 0:00:03]} 42. Ra7 {[%clk 0:00:04]}  Bf6 {[%clk 0:00:02]} 43. Be3 {[%clk 0:00:04]}  Be5 {[%clk 0:00:03]} 44. Nh4+ {[%clk 0:00:04]}  Kh5 {[%clk 0:00:02]} 45. Rxh7 {[%clk 0:00:04]}  f4 {[%clk 0:00:03]} 46. gxf4 {[%clk 0:00:02]}  Bf6 {[%clk 0:00:04]} 47. Ng2 {[%clk 0:00:02]}  Bh3 {[%clk 0:00:05]} 48. Rc7 {[%clk 0:00:02]}  Rg8 {[%clk 0:00:05]} 49. Kh2 {[%clk 0:00:02]}  Bxg2 {[%clk 0:00:05]} 50. h7 {[%clk 0:00:02]}  Rg4 {[%clk 0:00:03]} 51. Rf7 {[%clk 0:00:03]}  Bf3 {[%clk 0:00:03]} 52. Rxf6 {[%clk 0:00:01]}  Rh4+ {[%clk 0:00:04]} 53. Kg3 {[%clk 0:00:02]}  Rg4+ {[%clk 0:00:04]} 54. Kh3 {[%clk 0:00:02]}  Rh4+ {[%clk 0:00:05]} 55. Kg3 {[%clk 0:00:03]}  Rg4+ {[%clk 0:00:06]} 56. Kh3 {[%clk 0:00:03]}  Rh4+ {[%clk 0:00:06]} 57. Kg3 {[%clk 0:00:04]} 1/2-1/2


[Site "https://www.chess.com"]